Cogmind - Beta 15 @@@ ROGUE MODE // 2025.09.25 @ 22:04:03 Player: Dolina Result: Destroyed by S-10 Pest with Light Assault Rifle Performance ------------- Evolutions (0) 0 Regions Visited (1) 200 Robots Destroyed (15) 75 Value Destroyed (338) 338 Prototype IDs (2) 40 Alien Tech Used (0) 0 Bonus (0) 0 TOTAL SCORE: 653 Bonus ------- None Cogmind --------- Core Integrity 0/250 Matter 300/300 Energy 250/250 System Corruption 0% Temperature Cool (0) Movement Walking (120) Location -10/Materials Parts ------- > --- POWER (1) -------- Ion Engine > --- PROPULSION (2) --- Aluminum Leg Aluminum Leg > --- UTILITY (2) ------ Small Storage Unit > --- WEAPON (2) ------- Plasma Cutter Hammer > --- INVENTORY (8) ---- Ion Engine Light Ion Engine Signal Interpreter Heavy EM Pulse Gun Medium Laser Light Assault Rifle Peak State ------------ > --- POWER ------------ Light Ion Engine > --- PROPULSION ------- Aluminum Leg Aluminum Leg > --- UTILITY ---------- Small Storage Unit Light Armor Plating > --- WEAPON ----------- Assault Rifle Hammer > --- INVENTORY -------- Ion Engine Aluminum Leg Signal Interpreter Heavy EM Pulse Gun Heavy EM Pulse Gun Medium Laser Plasma Cutter [Rating: 8] Favorites ----------- Power Light Ion Engine Engine Light Ion Engine Propulsion Aluminum Leg Leg Aluminum Leg Utility Small Storage Unit Storage Small Storage Unit Processor Signal Interpreter Protection Light Armor Plating Weapon Hammer Energy Gun Medium Laser Ballistic Gun Assault Rifle Special Weapon Plasma Cutter Impact Weapon Hammer Build | -11 -10 ------- Run | Yrd Mat Slots Evolved . | . . Power . | . . Propulsion . | . . Utility . | . . Weapon . | . . Parts Attached 15 | 6 9 Power 3 | 1 2 Engine 3 | 1 2 Core . | . . Reactor . | . . Propulsion 4 | 2 2 Treads . | . . Leg 4 | 2 2 Wheel . | . . Hover . | . . Flight . | . . Utility 3 | 1 2 Device . | . . Storage 1 | 1 . Processor 1 | . 1 Hackware . | . . Protection 1 | . 1 Artifact . | . . Weapon 5 | 2 3 Energy Gun 2 | 1 1 Energy Cannon . | . . Ballistic Gun 1 | 1 . Ballistic Cannon . | . . Launcher . | . . Special Weapon 1 | . 1 Impact Weapon 1 | . 1 Slashing Weapon . | . . Piercing Weapon . | . . Special Melee Weapon . | . . Unidentified Prototypes . | . . Parts Lost 5 | . 5 Power . | . . Propulsion 2 | . 2 Utility 1 | . 1 Weapon 2 | . 2 Highest Loss Streak 3 | . 3 To Critical Strikes . | . . Average Backups 5 | . 6 Power 1 | . 1 Propulsion . | . 1 Utility . | . . Weapon 2 | . 2 Tool/Special . | . . Unused Backups 5 | . 5 Power . | . . Propulsion . | . . Utility 1 | . 1 Weapon 4 | . 4 Tool/Special . | . . Average Slot Usage (%) 91 | . 91 Engine 14 | . 14 Leg 27 | . 27 Storage 14 | . 14 Protection 7 | . 7 Energy Gun 4 | . 4 Ballistic Gun 10 | . 10 Impact Weapon 11 | . 11 Peak Build Rating 8 | 6 8 Average Rating 6 | 3 7 On Entrance 3 | . 6 Naked Turns . | . . Heaviest Build 15 | 12 15 Greatest Support 20 | 20 20 Greatest Overweight (x) 2 | 2 1 Average Overweight (x) . | . . Largest Inventory Capacity 8 | 8 8 Average Capacity 7 | 7 8 Most Carried 8 | 3 8 Average Carried 5 | . 6 Final Capacity 8 | 8 8 Final Carried 6 | 1 6 Class Distribution -------------------- 100% | Mutant Dominant Class ---------------- Mutant | -10/Materials Resources | -11 -10 ----------- Run | Yrd Mat Matter Collected 417 | 208 209 Remotely . | . . Salvage Created 432 | . 432 Parts 22 | . 22 Haulers Intercepted . | . . Recyclers Shooed . | . . Parts Field Recycled . | . . Retrieved Matter . | . . Parts Self-Destructed . | . . Prevented . | . . Kills | -11 -10 ------- Run | Yrd Mat Combat Hostiles Destroyed 12 | . 12 Melee 4 | . 4 Guns 2 | . 2 Classes Destroyed 5 | . 5 Builder 1 | . 1 Recycler 1 | . 1 Watcher 1 | . 1 Swarmer 5 | . 5 Grunt 7 | . 7 Best Kill Streak 3 | . 3 Combat Bots Only 5 | . 5 Max Kills in Single Turn 1 | . 1 Gunslinging . | . . Exploded . | . . Melee 1 | . 1 Uniques/NPCs Destroyed . | . . Combat | -11 -10 -------- Run | Yrd Mat Hostile Shots Fired 137 | . 137 Missed 34 | . 34 Hits 103 | . 103 Projectile 103 | . 103 Damage Taken 1016 | . 1016 Core 256 | . 256 Absorbed by Shields . | . . Core Remaining (%) 100 | 100 . Volleys Fired 29 | 1 28 Largest 2 | 1 2 Hottest 70 | 20 70 Shots Fired 40 | 1 39 Gun 40 | 1 39 Cannon . | . . Launcher . | . . Special . | . . Kinetic 26 | 1 25 Thermal 11 | . 11 Explosive . | . . Electromagnetic 3 | . 3 Robot Hit Streak 6 | 1 6 Robot Miss Streak 4 | . 4 Penetration Max . | . . Secondary Targets . | . . Shots Hit Robots 46 | 1 45 Core Hits 11 | . 11 Critical Kills 1 | . 1 Critical Parts Destroyed 5 | . 5 Critical Strikes 6 | . 6 Destroy 1 | . 1 Smash 5 | . 5 Melee Attacks 36 | . 36 Impact 36 | . 36 Slashing . | . . Piercing . | . . Sneak Attacks 2 | . 2 Combat Hostiles . | . . Follow-up Attacks . | . . Damage Inflicted 1033 | 17 1016 Guns 291 | 12 279 Cannons . | . . Explosions . | . . Melee 737 | . 737 Ramming 5 | 5 . Kinetic 215 | 12 203 Thermal 76 | . 76 Explosive . | . . Electromagnetic . | . . Impact 737 | . 737 Slashing . | . . Piercing . | . . Highest Corruption . | . . Average Corruption . | . . Corruption Purged . | . . Corruption Blocked . | . . Overload Shots . | . . Overflow Damage 147 | . 147 Projectiles . | . . Explosions . | . . Melee 147 | . 147 Knockbacks 4 | . 4 Impact 4 | . 4 Kinetic . | . . Secondary . | . . Self-Inflicted Damage . | . . Shots . | . . Rammed . | . . Targets Rammed 1 | 1 . Kicked 1 | 1 . Crushed . | . . Highest Temperature 75 | . 75 Average Temperature 26 | . 26 Received Heat Transfer 288 | . 288 Siege Activations . | . . Martial Activations . | . . Shielding Activations . | . . Robots Disrupted . | . . Combat Hostiles . | . . Robots Corrupted 6 | . 6 Combat Hostiles 6 | . 6 Parts Fried 8 | . 8 Impact Corruptions 10 | . 10 Robots Melted . | . . Combat Hostiles . | . . Parts Melted . | . . Heat Transferred 222 | . 222 Parts Sabotaged . | . . Parts Stolen . | . . Parts Stripped . | . . Power Chain Reactions . | . . Alert | -11 -10 ------- Run | Yrd Mat Maximum Alert Level . | . . Low Security (%) 100 | 100 100 Level 1 . | . . Level 2 . | . . Level 3 . | . . Level 4 . | . . Level 5 . | . . High Security . | . . Max Security . | . . Peak Influence 93 | . 93 Initial . | . . Average 17 | . 20 Influence Increases 332 | . 332 Destroy 0b10 Robot/C 240 | . 240 Destroy 0b10 Robot/NC 15 | . 15 Destroy Leader 52 | . 52 Successful Hack 9 | . 9 Disable Machine 15 | . 15 Destroy Structure 1 | . 1 Influence Decreases 239 | . 239 Time Decay 189 | . 189 Lost Part 50 | . 50 Squads Dispatched 3 | . 3 Investigation 2 | . 2 Extermination . | . . Reinforcement 1 | . 1 Assault . | . . Garrison . | . . Intercept . | . . Searches Triggered . | . . Construction Impeded . | . . Haulers Reinforced . | . . Active Scanning Responses . | . . Cargo Convoy Interrupts . | . . Stealth | -11 -10 --------- Run | Yrd Mat Distress Signals 1 | . 1 Communications Jammed . | . . Distress Signals . | . . Times Spotted 18 | . 18 Peak Tracking Total 5 | . 5 Tactical Retreats . | . . Traps | -11 -10 ------- Run | Yrd Mat Traps Triggered 3 | . 3 Indirectly . | . . Trap Hack Attempts . | . . Triggered . | . . Disarmed . | . . Reprogrammed . | . . Reused . | . . Traps Extracted . | . . Installed . | . . Triggered . | . . Machines | -11 -10 ---------- Run | Yrd Mat Machines Disabled 1 | . 1 Max in Single Turn 1 | . 1 Machines Repaired . | . . Machines Dismantled . | . . Machines Sabotaged . | . . Overloaded Fab Kills . | . . Hacking | -11 -10 --------- Run | Yrd Mat Machines Accessed 3 | . 3 Terminals 2 | . 2 Fabricators . | . . Repair Stations . | . . Recycling Units 1 | . 1 Scanalyzers . | . . Garrison Access . | . . Total Hacks 6 | . 6 Successful 6 | . 6 Failed . | . . Catastrophic . | . . Database Lockouts . | . . Manual . | . . Terminals 5 | . 5 Fabricators . | . . Repair Stations . | . . Recycling Units 1 | . 1 Scanalyzers . | . . Garrison Access . | . . Terminal Hacks 5 | . 5 Record 1 | . 1 Prototype ID Bank 1 | . 1 Alert Level 1 | . 1 Registered Prototypes 1 | . 1 Zone Layout 1 | . 1 Fabricator Hacks . | . . Repair Station Hacks . | . . Recycling Unit Hacks 1 | . 1 Report Inventory 1 | . 1 Scanalyzer . | . . Garrison Access Hacks . | . . Unauthorized Hacks . | . . Terminals . | . . Fabricators . | . . Repair Stations . | . . Recycling Units . | . . Scanalyzers . | . . Garrison Access . | . . Data Cores Recovered . | . . Used . | . . Hacking Detections 1 | . 1 Full Trace Events 1 | . 1 Feedback Events . | . . Feedback Blocked . | . . Robot Schematics Acquired . | . . Robots Built . | . . Authchips . | . . Time . | . . Total Robot Build Rating . | . . Part Schematics Acquired . | . . Parts Built . | . . Authchips . | . . Time . | . . Total Part Build Rating . | . . Parts Repaired . | . . Time . | . . Parts Recycled . | . . Recycled Matter . | . . Retrieved Matter . | . . Retrieved Components . | . . Parts Scanalyzed . | . . Part Schematics Acquired . | . . Parts Damaged . | . . Bothacking | -11 -10 ------------ Run | Yrd Mat Used RIF Installer . | . . Robots Hacked . | . . Non-combat . | . . Combat . | . . Robot Hacks Applied . | . . Relay Couplers Released . | . . Fabnet Peak Effective % . | . . Robots Rewired . | . . Allies Hacked . | . . Hacks Repelled . | . . Allies | -11 -10 -------- Run | Yrd Mat Total Allies . | . . Largest Group . | . . Highest-Rated Group . | . . Highest-Rated Ally . | . . Total Orders . | . . Ally Attacks . | . . Total Damage . | . . Kills . | . . Allies Corrupted . | . . Allies Melted . | . . Intel | -11 -10 ------- Run | Yrd Mat Active Infowar (turns) . | . . Robot Analysis Total . | . . Derelict Logs Recovered . | . . Drone Launches . | . . Drone Recoveries . | . . Exploration | -11 -10 ------------- Run | Yrd Mat Turns Passed 734 | 92 642 Spaces Moved 393 | 50 343 Core 14 | 14 . Treads . | . . Legs 379 | 36 343 Wheels . | . . Hover . | . . Flight . | . . Fastest Speed 50 | 50 120 Average Speed 119 | 112 120 Slowest Speed 190 | 150 190 Overloaded Moves . | . . Propulsion Burnouts . | . . Robots Hopped . | . . Potential Cave-ins . | . . Cave-ins Triggered . | . . Exploration Rate (%) 29 | 5 53 Regions Visited 1 Branch Regions . Pre-discovered Areas . | . . Known Exits Taken . | . . Unknown Exits Taken 1 | 1 . Scrap Searched . | . . Spaces Dug . | . . Terrain Destroyed . | . . Melee . | . . Projectile . | . . AOE . | . . Terrain Rammed . | . . Walls Destroyed . | . . Machines Disabled . | . . Actions | -11 -10 --------- Run | Yrd Mat Total 555 | 84 471 Wait 58 | 20 38 Move 392 | 49 343 Hop . | . . Pick Up 20 | 7 13 Fast Attach . | . . Attach 13 | 6 7 Detach 2 | . 2 Swap 2 | . 2 Drop 2 | . 2 Fire 29 | 1 28 Melee 36 | . 36 Ram . | . . Kick 1 | 1 . Crush . | . . Escape Stasis . | . . Rewire . | . . Trap . | . . Miscellaneous . | . . Route ------- -11/Scrapyard -10/Materials (discovered 2 exits: [*Mat x2]) History --------- Turn | Location | Event 26 | -11/Scrapyard | Discovered new exit (range 16) 93 | -11/Scrapyard | Entered Materials 300 | -10/Materials | Build established: Mutant 443 | -10/Materials | Discovered new exit (range 4) 623 | -10/Materials | Lost 3 parts (1n1u1w) 654 | -10/Materials | Discovered new exit (range 11) 688 | -10/Materials | Core integrity fell below 50% 712 | -10/Materials | Core integrity fell below 20% 735 | -10/Materials | Destroyed by S-10 Pest with Light Assault Rifle Last Messages --------------- S-10 Pest system corrupted by crushing effect. S-10 Pest system terminally corrupted. K-01 Serf collects debris. G-47 Trooper destroyed. K-01 Serf collects debris. Acquired 30 matter. K-01 Serf collects debris. G-34 Mercenary suffers critical hit (Smash). Destroyed Heat Sink. G-34 Mercenary system corrupted by crushing effect. K-01 Serf collects debris. G-34 Mercenary suffers critical hit (Smash). Destroyed Aluminum Leg. G-34 Mercenary system corrupted by crushing effect. G-34 Mercenary knocked back. G-34 Mercenary system terminally corrupted. Sml. Laser fried. K-01 Serf collects debris. Map ----- +----------------------------------------------------+ | #??????????????????????????? | | #??????????????????????????? | | ################## #??????????????????????????? | | #????????????????? #??????????????????????????? | | #?????????????????? #??????????????????????????? | | #?????????????????? #??????????????????????????? | | #??????????????????? #??????????????????????????? | | #????????????????????#??????????????????????????? | | #???????????????????????????????????????????????? | | ##??????????????????????????????????????????????? | | T#??????????????????????????????????????????????? | | ##??????????????????????????????????????????????? | | #???????????????????????????????????????????????? | | #???????????????????????????????????????????????? | | #???????????????????????????????????????????????? | | #?????????????????####??????????????????????????? | | #?????????????????? ??????????????????????? | | #?????????????????? ??????????????????????? | | #??????????????????""" """??????????????????????? | | ##???????????????????"" """??????????????????????? | | ??????????????????????" """??????????????????????? | | ??????????????????????? ??????????????????????? | | #########################/##?#######+###?????????? | | k ### #?????????? | | ms%=+ #?????????? | | *%*@!### #?????????? | | ### ################### k #?# #?????????? | | ??# #?????????????????# #?# """ """ #?????????? | | ??# ########??????????# %#?# """ """ #?????????? | | #?# # """ #??????????# #?# """ """ #?????????? | | #?# # """ #??????????# #?# ??????????? | | #?# =# """ #??????????# #?#####+####??????????? | | #?# %# #??????????# ?????? ?????????????? | | #?#% # #?????????? ????? ?????????????? | | #?# # % #??????????# ##?????#/?????????????? | | #?# ##+#####??????????# < #?????????????????????? | | #?# =%=% #????????????# #?????????????????????? | | #?# %=! ##########???#####?????????????????????? | | #?# ""# #?????????????????????????????? | | #?# T"# """ #?????????????????????????????? | | ### ""# """ #?????????????????????????????? | | # """ #?????????????????????????????? | | + #?????????????????????????????? | | ######### # """ #?????????????????????????????? | | ##|| # """ ]#?????????????????????????????? | | ##|| # """ #?????????????????????????????? | | ##]] ### / #?????????????????????????????? | | ##]] #?##########?????????????????????????????? | | ##!! #????????????????????????????????????????? | | ##!! #????????????????????????????????????????? | +----------------------------------------------------+ Best States ------------- Heat Dissipation 25 Energy Generation 10 Energy Capacity 250 Matter Stores 300 Matter Capacity 300 Sight Range 16 Terrain Scan Density 10 Armor Coverage 150 Evasion (%) 55 Item Schematics ----------------- None Robot Schematics ------------------ None Fabricated ------------ Nothing Repaired ---------- Nothing Alien Tech Used ----------------- None Achievements -------------- None Challenges ------------ None Game ------ Seed vfghue Manual? 1 Play Time 00:15:13 Cumulative 10.8 hours Start 2025.09.25 @ 21:43:40 End 2025.09.25 @ 22:04:03 Sessions 1 Manual Loads 0 Difficulty Rogue Special Mode None Game No. 17 Rogue 17 Adventurer 0 Explorer 0 Win Type - Total 0 Types 0/0/0/0/0/0/0/0/0/0 Lore% 1 Gallery% 11 Achievement% 8 Wizard Run 0 Options --------- Layout 1 ASCII 0 Keyboard 0 Movement Mouse Keybinds 0 Fullscreen 1 Font 32/SmallcapsGlow Map View 50x40 Zoom Use 4% Tactical HUD 0 Map Filters NONE Filters NONE Steam 1 RUN: e2ef41cb-40fc-41f9-8a80-b94db9f455e2